[Event "Early-Titled-Tuesday-Blitz-January-23-2024"]
[Site "Chess.com"]
[Date "2024.01.23"]
[Round "6"]
[White "NovakRatko"]
[Black "tarno17"]
[Result "1-0"]
[WhiteElo "2345"]
[BlackElo "2085"]
[TimeControl "180+1"]
[EndTime "9:04:58 PST"]
[Termination "NovakRatko won on time"]

1. d4 {[%clk 0:02:45.1]} 1... d5 {[%clk 0:02:59.6]} 2. c4 {[%clk 0:02:44]} 2...
e6 {[%clk 0:02:59.9]} 3. Nc3 {[%clk 0:02:43.3]} 3... Nf6 {[%clk 0:03:00.5]} 4.
cxd5 {[%clk 0:02:43.6]} 4... exd5 {[%clk 0:03:00.4]} 5. f3 {[%clk 0:02:44.1]}
5... Bb4 {[%clk 0:02:53.8]} 6. Bg5 {[%clk 0:02:42.7]} 6... O-O {[%clk
0:02:38.3]} 7. e3 {[%clk 0:02:42]} 7... Bf5 {[%clk 0:02:19.1]} 8. Bd3 {[%clk
0:02:40.6]} 8... Bg6 {[%clk 0:02:05.5]} 9. Ne2 {[%clk 0:02:35.2]} 9... Re8
{[%clk 0:01:57.9]} 10. Bxg6 {[%clk 0:02:27.6]} 10... fxg6 {[%clk 0:01:31.2]} 11.
O-O {[%clk 0:02:25.6]} 11... c6 {[%clk 0:01:19]} 12. Qd3 {[%clk 0:02:23.7]}
12... Nbd7 {[%clk 0:01:15.2]} 13. a3 {[%clk 0:02:21.4]} 13... Bd6 {[%clk
0:01:10.2]} 14. e4 {[%clk 0:02:18.2]} 14... dxe4 {[%clk 0:01:09.3]} 15. fxe4
{[%clk 0:02:17.3]} 15... Bxh2+ {[%clk 0:00:54]} 16. Kh1 {[%clk 0:02:12.4]} 16...
Bc7 {[%clk 0:00:51.7]} 17. e5 {[%clk 0:02:11.6]} 17... Nxe5 {[%clk 0:00:51.3]}
18. Qc2 {[%clk 0:01:54.1]} 18... Neg4 {[%clk 0:00:42.3]} 19. Qb3+ {[%clk
0:01:51.5]} 19... Kh8 {[%clk 0:00:38.8]} 20. Qxb7 {[%clk 0:01:51.7]} 20... h6
{[%clk 0:00:04]} 21. Bxf6 {[%clk 0:01:36.4]} 21... Nxf6 {[%clk 0:00:03.7]} 22.
Qxc6 {[%clk 0:01:36.7]} 22... Rb8 {[%clk 0:00:02.6]} 23. b4 {[%clk 0:01:35.8]}
23... Re7 {[%clk 0:00:02]} 24. Nf4 {[%clk 0:01:29.8]} 24... Kh7 {[%clk
0:00:01.7]} 25. Ne6 {[%clk 0:01:21.7]} 25... Qe8 {[%clk 0:00:01.1]} 26. Qxe8
{[%clk 0:01:17.9]} 26... Nxe8 {[%clk 0:00:01.6]} 27. Nxc7 {[%clk 0:01:18.5]}
27... Nxc7 {[%clk 0:00:01.3]} 28. Rae1 {[%clk 0:01:19]} 28... Rxe1 {[%clk
0:00:01.2]} 29. Rxe1 {[%clk 0:01:18.5]} 29... Rd8 {[%clk 0:00:01.7]} 30. Re7
{[%clk 0:01:17.7]} 1-0

[Event "Early-Titled-Tuesday-Blitz-January-23-2024"]
[Site "Chess.com"]
[Date "2024.01.23"]
[Round "6"]
[White "Nekoo04"]
[Black "sergeikim"]
[Result "1-0"]
[WhiteElo "2371"]
[BlackElo "2510"]
[TimeControl "180+1"]
[EndTime "9:05:06 PST"]
[Termination "Nekoo04 won by checkmate"]

1. d4 {[%clk 0:03:00.9]} 1... Nf6 {[%clk 0:02:57.6]} 2. c4 {[%clk 0:03:00.3]}
2... g6 {[%clk 0:02:57.7]} 3. Nc3 {[%clk 0:02:55.7]} 3... Bg7 {[%clk 0:02:58]}
4. e4 {[%clk 0:02:55.8]} 4... d6 {[%clk 0:02:58.3]} 5. Be2 {[%clk 0:02:55.6]}
5... O-O {[%clk 0:02:58.3]} 6. Nf3 {[%clk 0:02:56.3]} 6... e5 {[%clk 0:02:57.6]}
7. d5 {[%clk 0:02:56.9]} 7... Nh5 {[%clk 0:02:55.9]} 8. g3 {[%clk 0:02:24.8]}
8... a5 {[%clk 0:02:54.7]} 9. Be3 {[%clk 0:02:16.9]} 9... Na6 {[%clk 0:02:53.9]}
10. Nd2 {[%clk 0:02:09]} 10... Nf6 {[%clk 0:02:52]} 11. g4 {[%clk 0:01:42.5]}
11... Nc5 {[%clk 0:02:49]} 12. g5 {[%clk 0:01:10.4]} 12... Ne8 {[%clk
0:02:47.6]} 13. Qc2 {[%clk 0:01:07.1]} 13... Bd7 {[%clk 0:02:45.7]} 14. O-O-O
{[%clk 0:01:05.3]} 14... a4 {[%clk 0:02:42.8]} 15. h4 {[%clk 0:01:04.3]} 15...
c6 {[%clk 0:02:42.5]} 16. h5 {[%clk 0:01:02.3]} 16... Rc8 {[%clk 0:02:38.7]} 17.
hxg6 {[%clk 0:00:58.5]} 17... fxg6 {[%clk 0:02:34.6]} 18. Rh2 {[%clk 0:00:58.6]}
18... Rf7 {[%clk 0:02:32.3]} 19. Rdh1 {[%clk 0:00:51.1]} 19... Bf8 {[%clk
0:02:25.4]} 20. Qd1 {[%clk 0:00:32.6]} 20... Qe7 {[%clk 0:02:17.3]} 21. Qg1
{[%clk 0:00:31.5]} 21... Nc7 {[%clk 0:02:10.6]} 22. Rh4 {[%clk 0:00:23.3]} 22...
cxd5 {[%clk 0:02:06.2]} 23. exd5 {[%clk 0:00:23.1]} 23... b5 {[%clk 0:01:55.3]}
24. cxb5 {[%clk 0:00:17.9]} 24... Rb8 {[%clk 0:01:31.8]} 25. Bxc5 {[%clk
0:00:14.8]} 25... dxc5 {[%clk 0:01:31.2]} 26. Nde4 {[%clk 0:00:15.7]} 26... Nxb5
{[%clk 0:01:24.8]} 27. Bxb5 {[%clk 0:00:11.2]} 27... Bxb5 {[%clk 0:01:24.7]} 28.
Rxh7 {[%clk 0:00:07.5]} 28... Bg7 {[%clk 0:01:22]} 29. Qh2 {[%clk 0:00:04.8]}
29... Rf5 {[%clk 0:01:11.9]} 30. Rh8+ {[%clk 0:00:04.2]} 30... Bxh8 {[%clk
0:01:11.3]} 31. Qxh8+ {[%clk 0:00:03.6]} 31... Kf7 {[%clk 0:01:11]} 32. Rh7#
{[%clk 0:00:04.5]} 1-0

[Event "Early-Titled-Tuesday-Blitz-January-23-2024"]
[Site "Chess.com"]
[Date "2024.01.23"]
[Round "6"]
[White "NastyaHn"]
[Black "LuminaryHunter"]
[Result "1-0"]
[WhiteElo "2351"]
[BlackElo "2192"]
[TimeControl "180+1"]
[EndTime "9:05:11 PST"]
[Termination "NastyaHn won by resignation"]

1. Nc3 {[%clk 0:03:00.9]} 1... e5 {[%clk 0:02:48.3]} 2. Nf3 {[%clk 0:02:59.2]}
2... Nc6 {[%clk 0:02:47.5]} 3. d4 {[%clk 0:02:59]} 3... exd4 {[%clk 0:02:46.9]}
4. Nxd4 {[%clk 0:02:59.1]} 4... Nf6 {[%clk 0:02:46.3]} 5. Bg5 {[%clk 0:02:58.7]}
5... Be7 {[%clk 0:02:45.6]} 6. Qd2 {[%clk 0:02:48.1]} 6... h6 {[%clk 0:02:42.5]}
7. Bh4 {[%clk 0:02:38.1]} 7... d5 {[%clk 0:02:27]} 8. e3 {[%clk 0:02:22.9]} 8...
O-O {[%clk 0:02:20.1]} 9. Bg3 {[%clk 0:02:14.2]} 9... Nxd4 {[%clk 0:02:17.3]}
10. exd4 {[%clk 0:02:13.7]} 10... c6 {[%clk 0:02:17.6]} 11. Bd3 {[%clk
0:02:13.3]} 11... Re8 {[%clk 0:02:07]} 12. O-O {[%clk 0:02:07]} 12... Bd6 {[%clk
0:02:04.3]} 13. Rfe1 {[%clk 0:02:04.4]} 13... Bxg3 {[%clk 0:01:50.5]} 14. hxg3
{[%clk 0:02:03.7]} 14... b6 {[%clk 0:01:49.7]} 15. Ne2 {[%clk 0:01:59.7]} 15...
Bb7 {[%clk 0:01:47.3]} 16. Nf4 {[%clk 0:01:59.3]} 16... Qd6 {[%clk 0:01:43]} 17.
c3 {[%clk 0:01:56]} 17... c5 {[%clk 0:01:42.7]} 18. Rad1 {[%clk 0:01:53.6]}
18... cxd4 {[%clk 0:01:36.7]} 19. cxd4 {[%clk 0:01:53.7]} 19... Ne4 {[%clk
0:01:36.9]} 20. Bxe4 {[%clk 0:01:49]} 20... dxe4 {[%clk 0:01:37]} 21. d5 {[%clk
0:01:45.8]} 21... Rad8 {[%clk 0:01:35.8]} 22. Qc3 {[%clk 0:01:32.1]} 22... Rc8
{[%clk 0:01:33.2]} 23. Qb3 {[%clk 0:01:25.6]} 23... Rc5 {[%clk 0:01:30.2]} 24.
Rd4 {[%clk 0:01:16.2]} 24... g5 {[%clk 0:01:23.6]} 25. Ne2 {[%clk 0:01:04.8]}
25... Rxd5 {[%clk 0:01:22.2]} 26. Red1 {[%clk 0:01:05]} 26... Rxd4 {[%clk
0:01:16.9]} 27. Rxd4 {[%clk 0:01:04.9]} 27... Qc5 {[%clk 0:01:12.3]} 28. Rd7
{[%clk 0:01:00.5]} 28... Re7 {[%clk 0:00:58.8]} 29. Rd8+ {[%clk 0:00:53.6]}
29... Kg7 {[%clk 0:00:58.8]} 30. Nd4 {[%clk 0:00:50.7]} 30... e3 {[%clk
0:00:51.2]} 31. fxe3 {[%clk 0:00:47.8]} 31... Qc1+ {[%clk 0:00:46.1]} 32. Kh2
{[%clk 0:00:47.2]} 32... Rxe3 {[%clk 0:00:39.2]} 33. Qxe3 {[%clk 0:00:40.3]}
33... Qxe3 {[%clk 0:00:37.3]} 34. Nf5+ {[%clk 0:00:40.1]} 1-0

[Event "Early-Titled-Tuesday-Blitz-January-23-2024"]
[Site "Chess.com"]
[Date "2024.01.23"]
[Round "6"]
[White "ilushka"]
[Black "Andrey_Klymchuk"]
[Result "0-1"]
[WhiteElo "2449"]
[BlackElo "2748"]
[TimeControl "180+1"]
[EndTime "9:05:14 PST"]
[Termination "Andrey_Klymchuk won by checkmate"]

1. Nf3 {[%clk 0:03:00.9]} 1... c5 {[%clk 0:02:59.3]} 2. b3 {[%clk 0:03:00.7]}
2... Nf6 {[%clk 0:02:57.9]} 3. Bb2 {[%clk 0:03:01.2]} 3... g6 {[%clk 0:02:58.4]}
4. c4 {[%clk 0:03:01.1]} 4... Bg7 {[%clk 0:02:58.5]} 5. g3 {[%clk 0:03:01.7]}
5... b6 {[%clk 0:02:58.4]} 6. Bg2 {[%clk 0:03:02]} 6... Bb7 {[%clk 0:02:59]} 7.
O-O {[%clk 0:03:02.3]} 7... O-O {[%clk 0:02:59.1]} 8. d4 {[%clk 0:03:01.7]} 8...
cxd4 {[%clk 0:02:59.1]} 9. Qxd4 {[%clk 0:03:01.3]} 9... d6 {[%clk 0:02:57.9]}
10. Nc3 {[%clk 0:03:01.1]} 10... Nbd7 {[%clk 0:02:56.7]} 11. Rfd1 {[%clk
0:03:00.4]} 11... a6 {[%clk 0:02:55.2]} 12. Ne1 {[%clk 0:02:59.8]} 12... Bxg2
{[%clk 0:02:52.1]} 13. Nxg2 {[%clk 0:03:00.7]} 13... h5 {[%clk 0:02:37.2]} 14.
Ne3 {[%clk 0:02:56.7]} 14... Ng4 {[%clk 0:02:29.7]} 15. Qd2 {[%clk 0:02:50.2]}
15... Bh6 {[%clk 0:02:26.6]} 16. Ncd5 {[%clk 0:02:44.5]} 16... Nxe3 {[%clk
0:02:24.3]} 17. Nxe3 {[%clk 0:02:43.7]} 17... b5 {[%clk 0:02:12.8]} 18. Qd4
{[%clk 0:02:35.7]} 18... Nf6 {[%clk 0:02:08.8]} 19. c5 {[%clk 0:02:32.3]} 19...
dxc5 {[%clk 0:01:53.9]} 20. Qxc5 {[%clk 0:02:31.9]} 20... Qe8 {[%clk 0:01:54]}
21. Ba3 {[%clk 0:02:20.7]} 21... Ne4 {[%clk 0:01:30.6]} 22. Qxe7 {[%clk
0:02:08.7]} 22... Qxe7 {[%clk 0:01:31.5]} 23. Bxe7 {[%clk 0:02:08.2]} 23... Rfe8
{[%clk 0:01:31.4]} 24. Nd5 {[%clk 0:02:04.8]} 24... Bg7 {[%clk 0:01:23.3]} 25.
Rac1 {[%clk 0:01:59.5]} 25... Rac8 {[%clk 0:01:20.9]} 26. Bb4 {[%clk 0:01:46.8]}
26... Rxc1 {[%clk 0:01:17]} 27. Rxc1 {[%clk 0:01:47.7]} 27... Rd8 {[%clk
0:01:04.5]} 28. Rd1 {[%clk 0:01:33.9]} 28... Kh8 {[%clk 0:00:58.4]} 29. f3
{[%clk 0:01:28]} 29... Nf6 {[%clk 0:00:57.1]} 30. e4 {[%clk 0:01:25.6]} 30...
Nxd5 {[%clk 0:00:56.2]} 31. exd5 {[%clk 0:01:21]} 31... Kg8 {[%clk 0:00:55.9]}
32. d6 {[%clk 0:01:07.4]} 32... Bf8 {[%clk 0:00:55.3]} 33. Kf2 {[%clk
0:01:06.7]} 33... f5 {[%clk 0:00:53.9]} 34. Ke3 {[%clk 0:01:00.7]} 34... Kf7
{[%clk 0:00:54.2]} 35. Kf4 {[%clk 0:00:58.3]} 35... Kf6 {[%clk 0:00:52.2]} 36.
Bc3+ {[%clk 0:00:57.3]} 36... Kf7 {[%clk 0:00:50.1]} 37. Be5 {[%clk 0:00:29.7]}
37... Bh6# {[%clk 0:00:48.3]} 0-1

[Event "Early-Titled-Tuesday-Blitz-January-23-2024"]
[Site "Chess.com"]
[Date "2024.01.23"]
[Round "6"]
[White "Better_Chess_Faster"]
[Black "diamonds13"]
[Result "0-1"]
[WhiteElo "2106"]
[BlackElo "2347"]
[TimeControl "180+1"]
[EndTime "9:05:14 PST"]
[Termination "diamonds13 won by resignation"]

1. d4 {[%clk 0:03:00.9]} 1... Nf6 {[%clk 0:02:56.7]} 2. Bg5 {[%clk 0:02:59.9]}
2... Ne4 {[%clk 0:02:55]} 3. Bf4 {[%clk 0:02:59.2]} 3... c5 {[%clk 0:02:54.3]}
4. f3 {[%clk 0:02:57.4]} 4... Qa5+ {[%clk 0:02:40.5]} 5. c3 {[%clk 0:02:56.9]}
5... Nf6 {[%clk 0:02:39.8]} 6. d5 {[%clk 0:02:56]} 6... d6 {[%clk 0:02:40.2]} 7.
e4 {[%clk 0:02:55.5]} 7... g6 {[%clk 0:02:40.3]} 8. Nd2 {[%clk 0:02:54.9]} 8...
b5 {[%clk 0:02:39.3]} 9. Bd3 {[%clk 0:02:49.8]} 9... c4 {[%clk 0:02:38.7]} 10.
Bc2 {[%clk 0:02:48.1]} 10... a6 {[%clk 0:02:37.1]} 11. Ne2 {[%clk 0:02:46.4]}
11... Bg7 {[%clk 0:02:32.7]} 12. O-O {[%clk 0:02:45.8]} 12... Qb6+ {[%clk
0:02:23.1]} 13. Nd4 {[%clk 0:02:44.8]} 13... e5 {[%clk 0:02:14.9]} 14. dxe6
{[%clk 0:02:44.5]} 14... fxe6 {[%clk 0:02:13]} 15. Be3 {[%clk 0:02:43.1]} 15...
Qc7 {[%clk 0:02:12.4]} 16. f4 {[%clk 0:02:37.3]} 16... Bb7 {[%clk 0:02:10.4]}
17. e5 {[%clk 0:02:32.1]} 17... dxe5 {[%clk 0:02:05.6]} 18. fxe5 {[%clk
0:02:31.1]} 18... Qxe5 {[%clk 0:02:01.5]} 19. Bf4 {[%clk 0:02:18.6]} 19... Qd5
{[%clk 0:02:01.5]} 20. Qe2 {[%clk 0:02:08.7]} 20... e5 {[%clk 0:02:01.7]} 21.
Qxe5+ {[%clk 0:02:03.3]} 21... Qxe5 {[%clk 0:02:01.7]} 22. Bxe5 {[%clk
0:02:03.7]} 22... Nbd7 {[%clk 0:01:59.2]} 23. Bd6 {[%clk 0:01:59.7]} 23... O-O-O
{[%clk 0:01:50.7]} 24. a4 {[%clk 0:01:52.4]} 24... Ng4 {[%clk 0:01:38.1]} 25.
Be4 {[%clk 0:01:39.8]} 25... Bh6 {[%clk 0:01:33.6]} 26. Bxb7+ {[%clk 0:01:36.8]}
26... Kxb7 {[%clk 0:01:33.6]} 27. Ne4 {[%clk 0:01:33.5]} 27... Rhe8 {[%clk
0:01:26.2]} 28. Nc5+ {[%clk 0:01:23.7]} 28... Nxc5 {[%clk 0:01:24.8]} 29. Bxc5
{[%clk 0:01:22.4]} 29... Be3+ {[%clk 0:01:24.4]} 30. Kh1 {[%clk 0:01:17.2]}
30... Nf2+ {[%clk 0:01:22.3]} 31. Rxf2 {[%clk 0:01:08.2]} 31... Bxf2 {[%clk
0:01:22.3]} 32. axb5 {[%clk 0:01:06.9]} 32... axb5 {[%clk 0:01:22.3]} 33. g3
{[%clk 0:00:57.4]} 33... Bxd4 {[%clk 0:01:17.9]} 34. Bxd4 {[%clk 0:00:55.1]}
34... Re2 {[%clk 0:01:17.7]} 35. Ra7+ {[%clk 0:00:44.7]} 35... Kc6 {[%clk
0:01:13.9]} 36. Rxh7 {[%clk 0:00:38.1]} 36... Rxd4 {[%clk 0:01:13.6]} 37. cxd4
{[%clk 0:00:36.5]} 37... Rxb2 {[%clk 0:01:13.3]} 38. Rg7 {[%clk 0:00:31.5]}
38... c3 {[%clk 0:01:12.4]} 39. Rxg6+ {[%clk 0:00:30.8]} 39... Kd5 {[%clk
0:01:12.6]} 40. Rg5+ {[%clk 0:00:27.2]} 40... Kxd4 {[%clk 0:01:12.1]} 41. Rxb5
{[%clk 0:00:20.7]} 41... Rxb5 {[%clk 0:01:10.7]} 0-1

[Event "Early-Titled-Tuesday-Blitz-January-23-2024"]
[Site "Chess.com"]
[Date "2024.01.23"]
[Round "6"]
[White "Alexei_Kornev"]
[Black "Grandelicious"]
[Result "1-0"]
[WhiteElo "2746"]
[BlackElo "2897"]
[TimeControl "180+1"]
[EndTime "9:05:16 PST"]
[Termination "Alexei_Kornev won by resignation"]

1. e4 {[%clk 0:03:00.9]} 1... c5 {[%clk 0:02:59.9]} 2. Nf3 {[%clk 0:03:00.4]}
2... e6 {[%clk 0:03:00.5]} 3. d4 {[%clk 0:02:59]} 3... cxd4 {[%clk 0:03:01.4]}
4. Nxd4 {[%clk 0:02:59.2]} 4... a6 {[%clk 0:03:01.7]} 5. c4 {[%clk 0:02:58.2]}
5... Nf6 {[%clk 0:02:58]} 6. Nc3 {[%clk 0:02:57.7]} 6... Qc7 {[%clk 0:02:58.2]}
7. Be2 {[%clk 0:02:56.2]} 7... Bb4 {[%clk 0:02:53.1]} 8. Qb3 {[%clk 0:02:55.4]}
8... Bd6 {[%clk 0:02:46.7]} 9. h3 {[%clk 0:02:46.5]} 9... Nc6 {[%clk 0:02:35.1]}
10. Be3 {[%clk 0:02:45.3]} 10... Bf4 {[%clk 0:02:21.2]} 11. Bxf4 {[%clk
0:02:42]} 11... Qxf4 {[%clk 0:02:22.1]} 12. Nxc6 {[%clk 0:02:34.4]} 12... dxc6
{[%clk 0:02:08.3]} 13. Qc2 {[%clk 0:02:33.9]} 13... e5 {[%clk 0:02:00]} 14. Qd2
{[%clk 0:02:33.5]} 14... Qxd2+ {[%clk 0:01:55.2]} 15. Kxd2 {[%clk 0:02:34.4]}
15... Be6 {[%clk 0:01:54.9]} 16. c5 {[%clk 0:02:31.9]} 16... O-O-O+ {[%clk
0:01:49.2]} 17. Ke3 {[%clk 0:02:31.4]} 17... Rd4 {[%clk 0:01:47.4]} 18. f4
{[%clk 0:02:24.6]} 18... Rb4 {[%clk 0:01:38.3]} 19. f5 {[%clk 0:02:18.2]} 19...
Bd7 {[%clk 0:01:16.4]} 20. Rab1 {[%clk 0:02:11.7]} 20... Kc7 {[%clk 0:01:03.1]}
21. Rhd1 {[%clk 0:02:09.9]} 21... g6 {[%clk 0:00:33.1]} 22. a3 {[%clk
0:01:58.3]} 22... Rd4 {[%clk 0:00:31.2]} 23. Rxd4 {[%clk 0:01:57.6]} 23... exd4+
{[%clk 0:00:32.1]} 24. Kxd4 {[%clk 0:01:58.2]} 24... gxf5 {[%clk 0:00:32.8]} 25.
exf5 {[%clk 0:01:58.3]} 25... h5 {[%clk 0:00:16.3]} 26. Ke5 {[%clk 0:01:57.3]}
26... Ne8 {[%clk 0:00:16.4]} 27. Kf4 {[%clk 0:01:49.3]} 27... Ng7 {[%clk
0:00:12.5]} 28. g4 {[%clk 0:01:47.4]} 28... hxg4 {[%clk 0:00:12.6]} 29. hxg4
{[%clk 0:01:48.3]} 29... Rh2 {[%clk 0:00:05.6]} 30. Kg3 {[%clk 0:01:44.2]} 30...
Rh8 {[%clk 0:00:05.7]} 31. Bf3 {[%clk 0:01:41.3]} 31... Bc8 {[%clk 0:00:03.9]}
32. Rh1 {[%clk 0:01:40.6]} 32... Rg8 {[%clk 0:00:04.5]} 33. Kf4 {[%clk
0:01:36.9]} 33... Kd8 {[%clk 0:00:04.5]} 34. Ke5 {[%clk 0:01:32.6]} 34... Ne8
{[%clk 0:00:04.5]} 35. Rh7 {[%clk 0:01:29.6]} 35... Ke7 {[%clk 0:00:04.6]} 36.
Kf4 {[%clk 0:01:25]} 36... Nf6 {[%clk 0:00:04.5]} 37. Rh1 {[%clk 0:01:22.9]}
37... Rd8 {[%clk 0:00:04.9]} 38. g5 {[%clk 0:01:21.9]} 38... Nd7 {[%clk
0:00:03.1]} 39. f6+ {[%clk 0:01:20.8]} 39... Ke6 {[%clk 0:00:03.1]} 40. Re1+
{[%clk 0:01:18.6]} 40... Ne5 {[%clk 0:00:02.7]} 1-0

[Event "Early-Titled-Tuesday-Blitz-January-23-2024"]
[Site "Chess.com"]
[Date "2024.01.23"]
[Round "6"]
[White "ScofieldMichael01"]
[Black "19912131712118"]
[Result "1-0"]
[WhiteElo "2609"]
[BlackElo "2423"]
[TimeControl "180+1"]
[EndTime "9:05:16 PST"]
[Termination "ScofieldMichael01 won by checkmate"]

1. Nf3 {[%clk 0:03:00.9]} 1... d6 {[%clk 0:02:59.5]} 2. d4 {[%clk 0:03:00.2]}
2... Nf6 {[%clk 0:02:58.9]} 3. g3 {[%clk 0:03:00]} 3... g6 {[%clk 0:02:59.4]} 4.
b3 {[%clk 0:03:00.5]} 4... Bg7 {[%clk 0:03:00.1]} 5. Bb2 {[%clk 0:03:01]} 5...
O-O {[%clk 0:03:00.7]} 6. Bg2 {[%clk 0:03:01.7]} 6... c5 {[%clk 0:02:58.3]} 7.
O-O {[%clk 0:02:56.2]} 7... Nc6 {[%clk 0:02:58.1]} 8. c4 {[%clk 0:02:54.3]} 8...
Bg4 {[%clk 0:02:46]} 9. d5 {[%clk 0:02:50.2]} 9... Nb4 {[%clk 0:02:43.7]} 10.
Nc3 {[%clk 0:02:45.2]} 10... Na6 {[%clk 0:02:38.2]} 11. h3 {[%clk 0:02:35.1]}
11... Bd7 {[%clk 0:02:32]} 12. Qc2 {[%clk 0:02:29.6]} 12... Nc7 {[%clk
0:02:23.9]} 13. e4 {[%clk 0:02:28.7]} 13... b5 {[%clk 0:02:12.5]} 14. cxb5
{[%clk 0:02:28.3]} 14... Nxb5 {[%clk 0:02:08.1]} 15. Nxb5 {[%clk 0:02:28.5]}
15... Bxb5 {[%clk 0:02:05.7]} 16. Rfe1 {[%clk 0:02:29.4]} 16... Rc8 {[%clk
0:02:02.4]} 17. e5 {[%clk 0:02:23.8]} 17... Nxd5 {[%clk 0:02:02]} 18. exd6
{[%clk 0:02:20.9]} 18... exd6 {[%clk 0:02:01.4]} 19. Bxg7 {[%clk 0:02:20]} 19...
Kxg7 {[%clk 0:02:02.3]} 20. Rad1 {[%clk 0:02:19.6]} 20... Nf6 {[%clk 0:01:59]}
21. Qb2 {[%clk 0:02:06]} 21... c4 {[%clk 0:01:54.4]} 22. bxc4 {[%clk 0:02:04.2]}
22... Bxc4 {[%clk 0:01:49.4]} 23. g4 {[%clk 0:02:04.7]} 23... h6 {[%clk
0:01:41.3]} 24. h4 {[%clk 0:01:55.4]} 24... Kg8 {[%clk 0:01:20.1]} 25. Qd4
{[%clk 0:01:55.5]} 25... Be6 {[%clk 0:01:05.5]} 26. Qf4 {[%clk 0:01:44]} 26...
Rc4 {[%clk 0:00:57.4]} 27. Rd4 {[%clk 0:01:14.6]} 27... Rxd4 {[%clk 0:00:56.1]}
28. Nxd4 {[%clk 0:01:11.6]} 28... Bxg4 {[%clk 0:00:55.6]} 29. Qxh6 {[%clk
0:01:11.7]} 29... Nh5 {[%clk 0:00:50.3]} 30. Bd5 {[%clk 0:00:58.8]} 30... Qf6
{[%clk 0:00:36.1]} 31. Nc6 {[%clk 0:00:57.2]} 31... Be6 {[%clk 0:00:22.6]} 32.
Bf3 {[%clk 0:00:48.6]} 32... Qxf3 {[%clk 0:00:14.8]} 33. Ne7# {[%clk 0:00:48.2]}
1-0

[Event "Early-Titled-Tuesday-Blitz-January-23-2024"]
[Site "Chess.com"]
[Date "2024.01.23"]
[Round "6"]
[White "Alexei_Gubajdullin"]
[Black "dirk_da_player"]
[Result "1-0"]
[WhiteElo "2590"]
[BlackElo "2384"]
[TimeControl "180+1"]
[EndTime "9:05:17 PST"]
[Termination "Alexei_Gubajdullin won on time"]

1. d4 {[%clk 0:02:55.3]} 1... d5 {[%clk 0:02:59.3]} 2. Nf3 {[%clk 0:02:55.1]}
2... Nf6 {[%clk 0:02:58.7]} 3. Bf4 {[%clk 0:02:54.8]} 3... c5 {[%clk 0:02:57.3]}
4. e3 {[%clk 0:02:54.6]} 4... e6 {[%clk 0:02:55.6]} 5. Nbd2 {[%clk 0:02:53.9]}
5... Bd6 {[%clk 0:02:54.9]} 6. Bg3 {[%clk 0:02:53.3]} 6... Nc6 {[%clk
0:02:54.5]} 7. c3 {[%clk 0:02:51.6]} 7... O-O {[%clk 0:02:52.3]} 8. Ne5 {[%clk
0:02:49.4]} 8... Qc7 {[%clk 0:02:50.1]} 9. f4 {[%clk 0:02:48.2]} 9... Ne7 {[%clk
0:02:34.6]} 10. Bd3 {[%clk 0:02:47.5]} 10... Nf5 {[%clk 0:02:34.1]} 11. Qf3
{[%clk 0:02:47.2]} 11... Be7 {[%clk 0:02:24.2]} 12. h4 {[%clk 0:02:46.5]} 12...
Nd6 {[%clk 0:02:23.8]} 13. h5 {[%clk 0:02:46.1]} 13... h6 {[%clk 0:02:23.1]} 14.
Bh4 {[%clk 0:02:45.3]} 14... b6 {[%clk 0:01:33.2]} 15. Bxf6 {[%clk 0:02:40.1]}
15... Bxf6 {[%clk 0:01:33.1]} 16. g4 {[%clk 0:02:39.2]} 16... Bb7 {[%clk
0:01:24.7]} 17. g5 {[%clk 0:02:37.5]} 17... hxg5 {[%clk 0:01:20.5]} 18. h6
{[%clk 0:02:37.5]} 18... Ne4 {[%clk 0:01:04.3]} 19. hxg7 {[%clk 0:02:27.8]}
19... Bxg7 {[%clk 0:01:01.4]} 20. Nxe4 {[%clk 0:02:25.3]} 20... dxe4 {[%clk
0:01:01]} 21. Bxe4 {[%clk 0:02:19.6]} 21... Bxe4 {[%clk 0:00:58.5]} 22. Qxe4
{[%clk 0:02:19]} 22... f5 {[%clk 0:00:50.7]} 23. Qg2 {[%clk 0:02:15.5]} 23...
Bxe5 {[%clk 0:00:42.5]} 24. dxe5 {[%clk 0:02:11]} 24... g4 {[%clk 0:00:37.3]}
25. Qh2 {[%clk 0:01:59.8]} 25... Qg7 {[%clk 0:00:35.5]} 26. O-O-O {[%clk
0:01:59.5]} 26... Rad8 {[%clk 0:00:34.5]} 27. Rd6 {[%clk 0:01:56.7]} 27... Rxd6
{[%clk 0:00:28.2]} 28. exd6 {[%clk 0:01:56.5]} 28... Rd8 {[%clk 0:00:28.6]} 29.
Rd1 {[%clk 0:01:52.7]} 29... g3 {[%clk 0:00:25.7]} 30. Qh4 {[%clk 0:01:48.8]}
30... Rd7 {[%clk 0:00:25]} 31. Rg1 {[%clk 0:01:47.6]} 31... g2 {[%clk 0:00:25]}
32. Qh3 {[%clk 0:01:45.2]} 32... Kf8 {[%clk 0:00:20.7]} 33. Rxg2 {[%clk
0:01:44.1]} 33... Qf6 {[%clk 0:00:21.2]} 34. Qg3 {[%clk 0:01:38.9]} 34... Qf7
{[%clk 0:00:16.9]} 35. Qg5 {[%clk 0:01:32.3]} 35... Rxd6 {[%clk 0:00:16.1]} 36.
Qh6+ {[%clk 0:01:31.8]} 36... Ke8 {[%clk 0:00:16]} 37. Qh8+ {[%clk 0:01:31.5]}
37... Ke7 {[%clk 0:00:05.9]} 38. Rg7 {[%clk 0:01:30.4]} 1-0